Cogmind - Beta 10.2 @@@ ROGUE MODE // 2021.06.06 @ 15:45:48 Player: CrossedViper Result: Destroyed by NK-0LA with NK-0LA's Tesla Doomcannon Performance ------------- Evolutions (1) 500 Regions Visited (5) 1000 Robots Destroyed (37) 185 Value Destroyed (1213) 1213 Prototype IDs (24) 480 Alien Tech Used (0) 0 Bonus (300) 300 TOTAL SCORE: 3678 Bonus ------- Aligned with FarCom 300 Cogmind --------- Core Integrity 0/400 Matter 73/300 Energy 238/265 System Corruption 7% Temperature Cool (40) Movement Treading (300) Ox7 Location -8/Mines Parts ------- > --- POWER (1) -------- Improved Ion Engine > --- PROPULSION (2) --- Improved Treads Armored Wheel > --- UTILITY (4) ------ Humpback Humpback > --- WEAPON (2) ------- Heavy Assault Rifle Heavy Missile Launcher > --- INVENTORY (44) --- Improved Flight Unit Improved Flight Unit Improved Flight Unit Heat Sink High-capacity Storage Unit High-capacity Storage Unit Humpback Large Matter Pod (57) Microactuators Heavy Assault Rifle Remote Datajack Peak State ------------ > --- POWER ------------ Improved Ion Engine > --- PROPULSION ------- Improved Treads Armored Wheel > --- UTILITY ---------- Humpback Kinecellerator Light Armor Plating > --- WEAPON ----------- Heavy Missile Launcher Heavy Missile Launcher > --- INVENTORY -------- Improved Flight Unit Improved Flight Unit Improved Flight Unit Heat Sink High-capacity Storage Unit High-capacity Storage Unit Humpback Humpback Large Matter Pod Microactuators Heavy Assault Rifle Heavy Assault Rifle Remote Datajack [Rating: 23] Favorites ----------- Power Improved Ion Engine Engine Improved Ion Engine Propulsion Light Treads Treads Light Treads Wheel Armored Wheel Utility Large Storage Unit Device Heat Sink Storage Large Storage Unit Protection Light Armor Plating Weapon Heavy Assault Rifle Energy Gun Medium Laser Ballistic Gun Heavy Assault Rifle Launcher EMP Blaster Build | -11 -10 -9 -9 -9 -8 ------- Run | Scr Mat Mat Min Exi Min Slots Evolved 2 | . . 2 . . . Power . | . . . . . . Propulsion . | . . . . . . Utility 2 | . . 2 . . . Weapon . | . . . . . . Parts Attached 46 | 5 . 24 5 1 11 Power 4 | 1 . 3 . . . Engine 4 | 1 . 3 . . . Core . | . . . . . . Reactor . | . . . . . . Propulsion 9 | 2 . 5 1 . 1 Treads 6 | 2 . 2 1 . 1 Leg . | . . . . . . Wheel 3 | . . 3 . . . Hover . | . . . . . . Flight . | . . . . . . Utility 16 | . . 9 1 1 5 Device 3 | . . 2 . . 1 Storage 6 | . . 3 . 1 2 Processor . | . . . . . . Hackware . | . . . . . . Protection 7 | . . 4 1 . 2 Artifact . | . . . . . . Weapon 17 | 2 . 7 3 . 5 Energy Gun 4 | 1 . 3 . . . Energy Cannon . | . . . . . . Ballistic Gun 8 | 1 . 3 2 . 2 Ballistic Cannon . | . . . . . . Launcher 5 | . . 1 1 . 3 Special Weapon . | . . . . . . Impact Weapon . | . . . . . . Slashing Weapon . | . . . . . . Piercing Weapon . | . . . . . . Special Melee Weapon . | . . . . . . Unidentified Prototypes 1 | . . 1 . . . Parts Lost 13 | . . 8 2 . 3 Power 1 | . . 1 . . . Propulsion 2 | . . 1 1 . . Utility 4 | . . 2 . . 2 Weapon 6 | . . 4 1 . 1 Highest Loss Streak 4 | . . 4 1 . 3 Average Slot Usage (%) 87 | . 71 85 99 80 81 Engine 10 | . 14 10 11 11 11 Treads 12 | . 28 13 10 11 11 Wheel 9 | . . 8 11 11 11 Device 7 | . . 8 11 4 4 Storage 15 | . . 12 22 15 17 Protection 9 | . . 14 11 4 4 Energy Gun 2 | . 14 4 . . . Ballistic Gun 17 | . 14 13 20 22 6 Naked Turns . | . . . . . . Heaviest Build 100 | 7 7 47 49 93 100 Greatest Support 40 | 3 3 40 12 12 12 Greatest Overweight (x) 8 | 2 2 3 4 7 8 Average Overweight (x) 3 | . 2 1 3 5 8 Largest Inventory Capacity 44 | 4 4 16 16 36 44 Average Capacity 13 | 4 4 7 16 20 24 Most Carried 19 | 4 4 9 13 19 18 Average Carried 9 | 1 4 5 10 14 15 Final Capacity 44 | 4 4 16 16 24 44 Final Carried 19 | 4 4 9 10 19 12 Class Distribution -------------------- 55% | Scavenger-Mutant 27% | Mutant 16% | Hauler-Mutant Dominant Class ---------------- Mutant | -10/Materials Mutant | -9/Materials Scavenger-Mutant | -9/Mines Hauler-Mutant | -9/Exiles Hauler-Mutant | -8/Mines Resources | -11 -10 -9 -9 -9 -8 ----------- Run | Scr Mat Mat Min Exi Min Matter Collected 892 | 158 63 470 190 11 . Remotely . | . . . . . . Salvage Created 1274 | . 63 782 305 . 124 Parts 73 | . 4 44 22 . 3 Haulers Intercepted 1 | . . 1 . . . Recyclers Shooed 1 | . 1 . . . . Parts Field Recycled . | . . . . . . Retrieved Matter . | . . . . . . Parts Self-Destructed . | . . . . . . Prevented . | . . . . . . Kills | -11 -10 -9 -9 -9 -8 ------- Run | Scr Mat Mat Min Exi Min Combat Hostiles Destroyed 34 | . 1 17 10 . 6 Guns 18 | . 1 12 5 . . AOE 14 | . . 5 3 . 6 Classes Destroyed 8 | . 2 4 1 . 1 Tunneler 1 | . . . 1 . . Hauler 1 | . . 1 . . . Watcher 1 | . 1 . . . . Swarmer 9 | . . 3 6 . . Grunt 17 | . 1 7 4 . 5 Brawler 1 | . . 1 . . . Duelist 1 | . . . . . 1 Sentry 6 | . . 6 . . . Best Kill Streak 6 | . 1 4 2 . 6 Combat Bots Only 6 | . 1 4 3 . 6 Max Kills in Single Turn 3 | . 1 2 2 . 3 Gunslinging . | . . . . . . Exploded 3 | . . 2 2 . 3 Melee . | . . . . . . Uniques/NPCs Destroyed . | . . . . . . Combat | -11 -10 -9 -9 -9 -8 -------- Run | Scr Mat Mat Min Exi Min Damage Taken 2675 | . 20 1445 326 . 884 Core 417 | . 10 229 39 . 139 Absorbed by Shields . | . . . . . . Core Remaining (%) 98 | 100 96 . . . . Volleys Fired 128 | . 5 77 35 1 10 Largest 2 | . 2 2 2 2 2 Hottest 100 | . 70 100 46 46 78 Shots Fired 214 | . 10 131 53 2 18 Gun 176 | . 10 125 36 2 3 Cannon . | . . . . . . Launcher 38 | . . 6 17 . 15 Special . | . . . . . . Kinetic 135 | . 5 89 36 2 3 Thermal 32 | . 5 27 . . . Explosive 15 | . . . . . 15 Electromagnetic 32 | . . 15 17 . . Robot Hit Streak 14 | . 3 14 7 . 8 Robot Miss Streak 4 | . 1 4 2 . 3 Penetration Max . | . . . . . . Secondary Targets 2 | . . 1 1 . . Max Gunslinging Chain 1 | . . 1 1 . . Shots Hit Robots 132 | . 6 92 21 . 13 Core Hits 66 | . 3 32 13 . 18 Critical Hits . | . . . . . . Critical Kills . | . . . . . . Critical Parts Destroyed . | . . . . . . Melee Attacks . | . . . . . . Impact . | . . . . . . Slashing . | . . . . . . Piercing . | . . . . . . Sneak Attacks . | . . . . . . Combat Hostiles . | . . . . . . Follow-up Attacks . | . . . . . . Damage Inflicted 3267 | . 78 1382 582 . 1225 Guns 1397 | . 78 1061 229 . 29 Cannons . | . . . . . . Explosions 1870 | . . 321 353 . 1196 Melee . | . . . . . . Ramming . | . . . . . . Kinetic 972 | . 27 687 229 . 29 Thermal 579 | . 51 457 71 . . Explosive 1196 | . . . . . 1196 Electromagnetic 520 | . . 238 282 . . Impact . | . . . . . . Slashing . | . . . . . . Piercing . | . . . . . . Highest Corruption 7 | . . . . . 7 Average Corruption 3 | . . . . . 3 Corruption Purged . | . . . . . . Effects 1 | . . . . . 1 Misfires 1 | . . . . . 1 Overload Shots . | . . . . . . Overflow Damage 59 | . . 58 1 . . Projectiles . | . . . . . . Explosions 59 | . . 58 1 . . Melee . | . . . . . . Knockbacks . | . . . . . . Impact . | . . . . . . Kinetic . | . . . . . . Secondary . | . . . . . . Self-Inflicted Damage 423 | . . 231 29 . 163 Shots 12 | . . 6 3 . 3 Rammed . | . . . . . . Targets Rammed . | . . . . . . Kicked . | . . . . . . Crushed . | . . . . . . Highest Temperature 128 | . 30 128 . . 85 Average Temperature 42 | . 11 51 . . 39 Received Heat Transfer 477 | . 12 339 72 . 54 Siege Activations . | . . . . . . Robots Corrupted 2 | . . . 2 . . Combat Hostiles 2 | . . . 2 . . Parts Fried 4 | . . . 4 . . Impact Corruptions . | . . . . . . Robots Melted . | . . . . . . Combat Hostiles . | . . . . . . Parts Melted 3 | . . 2 1 . . Heat Transferred 1212 | . 148 964 100 . . Parts Sabotaged . | . . . . . . Parts Stolen . | . . . . . . Parts Stripped . | . . . . . . Power Chain Reactions 3 | . . 2 1 . . Missiles Intercepted . | . . . . . . Alert | -11 -10 -9 -9 -9 -8 ------- Run | Scr Mat Mat Min Exi Min Peak Influence 383 | . 52 383 338 . 192 Initial 148 | . . 21 148 . . Average 201 | . 20 239 221 . 115 Maximum Alert Level 1 | . . 1 1 . . Low Security (%) 48 | 100 100 33 45 . 100 Level 1 51 | . . 66 54 . . Level 2 . | . . . . . . Level 3 . | . . . . . . Level 4 . | . . . . . . Level 5 . | . . . . . . High Security . | . . . . . . Max Security . | . . . . . . Squads Dispatched 5 | . 1 3 1 . . Investigation 3 | . . 2 1 . . Extermination . | . . . . . . Reinforcement 2 | . 1 1 . . . Assault . | . . . . . . Garrison . | . . . . . . Intercept . | . . . . . . Construction Impeded . | . . . . . . Haulers Reinforced . | . . . . . . Stealth | -11 -10 -9 -9 -9 -8 --------- Run | Scr Mat Mat Min Exi Min Distress Signals 3 | . . 3 . . . Communications Jammed . | . . . . . . Distress Signals . | . . . . . . Times Spotted 51 | . 5 27 14 . 5 Peak Tracking Total 9 | . 3 7 3 9 4 Tactical Retreats 4 | . . 2 2 . . Traps | -11 -10 -9 -9 -9 -8 ------- Run | Scr Mat Mat Min Exi Min Traps Triggered . | . . . . . . Indirectly . | . . . . . . Trap Hack Attempts . | . . . . . . Triggered . | . . . . . . Disarmed . | . . . . . . Reprogrammed . | . . . . . . Reused . | . . . . . . Traps Extracted . | . . . . . . Installed . | . . . . . . Triggered . | . . . . . . Machines | -11 -10 -9 -9 -9 -8 ---------- Run | Scr Mat Mat Min Exi Min Machines Disabled 7 | . . 5 1 1 . Max in Single Turn 4 | . . 4 1 1 . Machines Sabotaged . | . . . . . . Garrisons Compromised . | . . . . . . Overloaded Fab Kills . | . . . . . . Fab Network Shutdowns . | . . . . . . Hacking | -11 -10 -9 -9 -9 -8 --------- Run | Scr Mat Mat Min Exi Min Machines Accessed 8 | . 1 4 1 2 . Terminals 5 | . 1 4 . . . Fabricators . | . . . . . . Repair Stations . | . . . . . . Recycling Units . | . . . . . . Scanalyzers . | . . . . . . Garrison Access . | . . . . . . Total Hacks 15 | . 3 9 1 2 . Successful 7 | . . 4 1 2 . Failed 8 | . 3 5 . . . Catastrophic 3 | . 1 2 . . . Database Lockouts . | . . . . . . Manual 11 | . 3 7 . 1 . Terminals 12 | . 3 9 . . . Fabricators . | . . . . . . Repair Stations . | . . . . . . Recycling Units . | . . . . . . Scanalyzers . | . . . . . . Garrison Access . | . . . . . . Terminal Hacks 7 | . . 4 1 2 . Record 1 | . . . . 1 . Part Schematic 1 | . . 1 . . . Robot Analysis 2 | . . 2 . . . Open Door 1 | . . . 1 . . Branch Access Points 1 | . . 1 . . . EX-Prototype ID Bank 1 | . . . . 1 . Fabricator Hacks . | . . . . . . Repair Station Hacks . | . . . . . . Recycling Unit Hacks . | . . . . . . Scanalyzer . | . . . . . . Garrison Access Hacks . | . . . . . . Unauthorized Hacks . | . . . . . . Terminals . | . . . . . . Fabricators . | . . . . . . Repair Stations . | . . . . . . Recycling Units . | . . . . . . Scanalyzers . | . . . . . . Garrison Access . | . . . . . . Data Cores Recovered . | . . . . . . Used . | . . . . . . Hacking Detections 4 | . 1 3 . . . Full Trace Events 3 | . 1 2 . . . Feedback Events . | . . . . . . Feedback Blocked . | . . . . . . Robot Schematics Acquired . | . . . . . . Robots Built . | . . . . . . Matter . | . . . . . . Time . | . . . . . . Total Robot Build Rating . | . . . . . . Part Schematics Acquired 1 | . . 1 . . . Parts Built . | . . . . . . Matter . | . . . . . . Time . | . . . . . . Total Part Build Rating . | . . . . . . Parts Repaired . | . . . . . . Time . | . . . . . . Parts Recycled . | . . . . . . Recycled Matter . | . . . . . . Retrieved Matter . | . . . . . . Retrieved Components . | . . . . . . Parts Scanalyzed . | . . . . . . Part Schematics Acquired . | . . . . . . Parts Damaged . | . . . . . . Bothacking | -11 -10 -9 -9 -9 -8 ------------ Run | Scr Mat Mat Min Exi Min Used RIF Installer . | . . . . . . Robots Hacked . | . . . . . . Non-combat . | . . . . . . Combat . | . . . . . . Robot Hacks Applied . | . . . . . . Relay Couplers Released . | . . . . . . Robots Rewired . | . . . . . . Allies Hacked . | . . . . . . Hacks Repelled . | . . . . . . Allies | -11 -10 -9 -9 -9 -8 -------- Run | Scr Mat Mat Min Exi Min Total Allies . | . . . . . . Largest Group . | . . . . . . Highest-Rated Group . | . . . . . . Highest-Rated Ally . | . . . . . . Total Orders . | . . . . . . Ally Attacks . | . . . . . . Total Damage . | . . . . . . Kills . | . . . . . . Allies Corrupted . | . . . . . . Allies Melted . | . . . . . . Intel | -11 -10 -9 -9 -9 -8 ------- Run | Scr Mat Mat Min Exi Min Robot Analysis Total 2 | . . 2 . . . Derelict Logs Recovered 2 | . . . 2 . . Drone Launches . | . . . . . . Drone Recoveries . | . . . . . . Exploration | -11 -10 -9 -9 -9 -8 ------------- Run | Scr Mat Mat Min Exi Min Turns Passed 2459 | 80 135 788 735 678 43 Spaces Moved 1587 | 73 80 467 522 444 1 Core 160 | 73 80 7 . . . Treads 47 | . . 47 . . . Legs . | . . . . . . Wheels 1380 | . . 413 522 444 1 Hover . | . . . . . . Flight . | . . . . . . Fastest Speed 50 | 50 150 100 120 120 170 Average Speed 125 | 93 150 112 122 145 170 Slowest Speed 170 | 150 150 160 130 160 170 Overloaded Moves . | . . . . . . Propulsion Burnouts . | . . . . . . Robots Hopped . | . . . . . . Cave-ins Triggered . | . . . . . . Exploration Rate (%) 42 | 3 29 56 89 70 6 Regions Visited 5 Branch Regions 3 Pre-discovered Areas 3 | . . . 2 1 . Known Exits Taken 1 | . . 1 . . . Unknown Exits Taken 4 | 1 1 . 1 1 . Scrap Searched 3 | . . . 3 . . Spaces Dug 7 | . . . 7 . . Terrain Destroyed 222 | . . 74 7 . 141 Melee . | . . . . . . Projectile . | . . . . . . AOE 222 | . . 74 7 . 141 Terrain Rammed . | . . . . . . Walls Destroyed . | . . . . . . Machines Disabled . | . . . . . . Actions | -11 -10 -9 -9 -9 -8 --------- Run | Scr Mat Mat Min Exi Min Total 1849 | 84 85 607 570 478 25 Wait 31 | . 1 6 2 22 . Move 1582 | 72 79 466 521 443 1 Hop . | . . . . . . Pick Up 40 | 7 . 21 5 7 . Fast Attach 9 | 2 . 6 . 1 . Attach 30 | 3 . 16 4 . 7 Detach 2 | . . 1 . . 1 Swap 7 | . . 2 1 . 4 Drop 20 | . . 12 2 4 2 Fire 128 | . 5 77 35 1 10 Melee . | . . . . . . Ram . | . . . . . . Kick . | . . . . . . Crush . | . . . . . . Escape Stasis . | . . . . . . Rewire . | . . . . . . Trap . | . . . . . . Miscellaneous . | . . . . . . Route ------- -11/Scrapyard -10/Materials -9/Materials (discovered 3 exits: [*Mat x2] / *Min) -9/Mines (discovered 3 exits: [*Mat x2] / *Exi) -9/Exiles -8/Mines History --------- Turn | Location | Event 4 | -11/Scrapyard | Discovered new exit (range 15) 81 | -11/Scrapyard | Entered Materials 213 | -10/Materials | Discovered new exit (range 3) 216 | -10/Materials | Entered another Materials area 216 | -9/Materials | Evolved 2 slots: Utility x2 315 | -9/Materials | Build established: Mutant 427 | -9/Materials | Lost 4 parts (1p1n2w) 555 | -9/Materials | Discovered new exit (range 6) 586 | -9/Materials | Lost 4 parts (2u2w) 788 | -9/Materials | Core integrity fell below 50% 858 | -9/Materials | Discovered new exit (range 13) 942 | -9/Materials | Discovered new exit (range 16) 979 | -9/Materials | Identified exit to Mines 1004 | -9/Materials | Entered Mines 1061 | -9/Mines | Learned location of Zion (-7) 1063 | -9/Mines | Build established: Scavenger-Mutant 1208 | -9/Mines | Discovered new exit (range 3) 1368 | -9/Mines | Discovered new exit (range 11) 1372 | -9/Mines | Met a Derelict shopkeep closing up shop 1732 | -9/Mines | Deemed a non-threat by the Exiles lab entrance 1732 | -9/Mines | Discovered new exit (range 5) 1739 | -9/Mines | Entered Exiles 1775 | -9/Exiles | Met 8R-AWN 1793 | -9/Exiles | Met EX-HEX 1832 | -9/Exiles | Met EX-BIN 1962 | -9/Exiles | Met EX-DEC 2172 | -9/Exiles | Aligned with FarCom system 2173 | -9/Exiles | Given EX-Vault access code 2210 | -9/Exiles | Opened EX-Vault 2247 | -9/Exiles | Warned to stay clear of 0b10 Research branches 2314 | -9/Exiles | Build established: Hauler-Mutant 2388 | -9/Exiles | Attacked by the Exiles 2401 | -9/Exiles | Discovered new exit (range 12) 2417 | -9/Exiles | Entered Mines 2434 | -8/Mines | NK-0LA came to Exiles' defense 2445 | -8/Mines | Core integrity fell below 20% 2460 | -8/Mines | Destroyed by NK-0LA with NK-0LA's Tesla Doomcannon Last Messages --------------- A strange signal echoes through the mines. LOCATION=UNKNOWN GOAL=ESCAPE 02419_ Lgt. Armor Plating destroyed. 02423_ G-47 Trooper destroyed. 02425_ L-31 Rogue destroyed. 02428_ Dropped Lgt. Treads. 02433_ The unstable cave ceiling collapses. 02434_ NK-0LA: "I came as fast as I could... Wait, it was you!" 02437_ The unstable cave ceiling collapses. 02444_ G-47 Trooper destroyed. 02446_ Lgt. Armor Plating destroyed. 02447_ The unstable cave ceiling collapses. 02456_ Hvy. Missile Launcher destroyed. 02457_ The unstable cave ceiling collapses. 02458_ Dropped Kinecellerator. 02459_ System corrupted: FCS attempts to trigger Hvy. Missile Launcher. 02459_ System corrupted: Hvy. Missile Launcher misfires. 02459_ The unstable cave ceiling collapses. 02460_ Destroyed Reflective Plating. Map ----- +----------------------------------------------------+ | ????????????????????????????????? | | ????????????????????????????????? | | ????????????????????????????????? | | ????????????????????????????????? | | ????????????????????????????????? | | ????????????????????????????????? | | ????????????????????????????????? | | ????????????????????????????????? | | ????????????????????????????????? | | ????????????????????????????????? | | ????????????????????????????????? | | ????????????????????????????????? | | ????????????????????????????????? | | ????????????????????????????????? | | ????????????????????????????????? | | ????????????????????????????????? | | ???????????????????????##???????? | | ??????????????????????## ???????? | | ?????????????????????## ???????? | | ????????????????????## ???????? | | ????????????????????# ???????? | | ????????????????????# ???????? | | ??????????? ????### #####??? | | ?????????? # #??? | | ?????????? ###? | | ?????????? @ #? | | ?????????? = # #?? | | ?????????? %*% #?? | | ?????????? x =% #?? | | ??????????? #?? | | ???????????? # #?? | | ???????????? #?? | | ???????????? #### ###?? | | ????????????? # #????###???? | | ????????????? # ???????????? | | ?????????????? ?#????????????? | | ?????????????? ???????????????? | | ????????????????????????????????? | | ????????????????????????????????? | | ????????????????????????????????? | | ????????????????????????????????? | | ????????????????????????????????? | | ????????????????????????????????? | | ????????????????????????????????? | | ????????????????????????????????? | | ????????????????????????????????? | | ????????????????????????????????? | | ????????????????????????????????? | | ????????????????????????????????? | | ????????????????????????????????? | +----------------------------------------------------+ Best States ------------- Heat Dissipation 38 Energy Generation 14 Energy Capacity 280 Matter Stores 419 Matter Capacity 450 Sight Range 16 Terrain Scan Density 10 Armor Coverage 300 Evasion (%) 50 Recoil Reduction 2 Kinecelleration 30 Item Schematics ----------------- Hcp. Storage Unit | -9/Materials | Hacked Robot Schematics ------------------ None Fabricated ------------ Nothing Alien Tech Used ----------------- None Achievements -------------- None Challenges ------------ None Game ------ Seed LightpackReflectiveRipper Manual? 0 Play Time 00:15:33 Cumulative 430.5 hours Start 2021.06.06 @ 15:21:44 End 2021.06.06 @ 15:45:48 Sessions 1 Manual Loads 0 Difficulty Rogue Special Mode None Game No. 328 Rogue 321 Adventurer 0 Explorer 7 Win Type - Total 19 Types 8/2/9/0/0/0/0/0/0 Lore% 81 Gallery% 94 Achievement% 78 Wizard Run 0 Options --------- ASCII 0 Keyboard 0 Movement Numpad Keybinds 0 Fullscreen 1 Font 18/X11Bold Map View 76x50 Tactical HUD 1 Map Filters NONE Filters NONE Steam 1 RUN: 8e9da2da-cfdb-4001-9631-4a7cd2bc7145